fUST/lending_fUST_20250224
["ID","MTS","AMOUNT","RATE_DAILY","PERIOD"]
[354218170,1740351043663,-151.0,0.00014438,2]
[354218172,1740351043673,-500.0,0.00014438,2]
[354218174,1740351043682,-500.0,0.00014438,2]
[354218176,1740351043692,-1650.06,0.00014438,2]
[354218178,1740351043701,-672.14,0.00014438,2]
[354218180,1740351043712,-1413.72,0.00014438,2]
[354218182,1740351043722,-634.35,0.00014438,2]
[354218184,1740351043731,-615.86,0.00014438,2]
[354218186,1740351043740,-3066.51,0.00014438,2]
[354218196,1740351043825,-500.0,0.00014438,2]
[354218198,1740351043835,-396.48863442,0.00014438,2]
[354218200,1740351043845,-500.0,0.00014438,2]
[354218202,1740351043854,-500.0,0.00014465,2]
[354218204,1740351043863,-1512.75,0.000145,2]
[354218206,1740351043873,-1000.0,0.00014517,2]
[354218208,1740351043882,-151.0,0.00014519,2]
[354218210,1740351043891,-151.403939,0.00014519,2]
[354218212,1740351043901,-151.0,0.00014519,2]
[354218214,1740351043910,-400.761287,0.00014519,2]
[354218216,1740351043919,-215.720241,0.00014519,2]
[354218218,1740351043929,-400.761287,0.00014519,2]
[354218220,1740351043937,-215.720241,0.00014519,2]
[354218222,1740351043946,-151.0,0.00014519,2]
[354218224,1740351043957,-151.0,0.0001452,2]
[354218226,1740351043966,-151.0,0.0001452,2]
[354218228,1740351043974,-548.33,0.0001452,2]
[354218230,1740351043983,-500.0,0.0001452,2]
[354218232,1740351043992,-700.86,0.0001452,2]
[354218234,1740351044001,-500.0,0.0001452,2]
[354218236,1740351044011,-571.51,0.0001452,2]
[354218238,1740351044020,-151.0,0.0001452,2]
[354218240,1740351044029,-846.83,0.0001452,2]
[354218242,1740351044038,-590.92,0.0001452,2]
[354218244,1740351044047,-151.0,0.0001452,2]
[354218246,1740351044056,-7691.95,0.0001452,2]
[354218248,1740351044065,-3077.95,0.0001452,2]
[354218250,1740351044075,-667.9,0.0001452,2]
[354218252,1740351044084,-500.0,0.0001452,2]
[354218254,1740351044093,-500.0,0.0001452,2]
[354218256,1740351044103,-500.0,0.0001452,2]
[354218258,1740351044112,-1650.06,0.0001452,2]
[354218260,1740351044121,-672.14,0.0001452,2]
[354218262,1740351044130,-1413.72,0.0001452,2]
[354218264,1740351044139,-634.35,0.0001452,2]
[354218266,1740351044148,-615.86,0.0001452,2]
[354218268,1740351044157,-3066.51,0.0001452,2]
[354218270,1740351044167,-500.0,0.0001452,2]
[354218272,1740351044176,-500.0,0.0001452,2]
[354218274,1740351044185,-823.0,0.00014543,2]
[354218276,1740351044194,-150.23,0.00014575,2]
[354218278,1740351044204,-500.0,0.00014575,2]
[354218280,1740351044213,-500.0,0.00014575,2]
[354218282,1740351044223,-150.23,0.00014575,2]
[354218284,1740351044232,-150.23,0.00014575,2]
[354218286,1740351044241,-217.84546244,0.00014575,2]
[354218288,1740351044251,-857.0,0.00014575,2]
[354218290,1740351044260,-199.7048652,0.00014575,2]
[354218292,1740351044271,-500.0,0.00014575,2]
[354218294,1740351044280,-150.23,0.00014575,2]
[354218296,1740351044289,-150.23,0.00014575,2]
[354218298,1740351044298,-150.23,0.00014575,2]
[354218300,1740351044307,-500.0,0.00014575,2]
[354218302,1740351044316,-150.23,0.00014575,2]
[354218304,1740351044325,-150.23,0.00014575,2]
[354218306,1740351044335,-150.23,0.00014575,2]
[354218308,1740351044344,-150.23,0.00014575,2]
[354218310,1740351044353,-500.0,0.00014602,2]
[354218312,1740351044361,-700.86,0.00014602,2]
[354218314,1740351044370,-500.0,0.00014602,2]
[354218316,1740351044379,-151.0,0.00014602,2]
[354218318,1740351044388,-151.0,0.00014602,2]
[354218320,1740351044397,-151.0,0.00014602,2]
[354218322,1740351044406,-571.51,0.00014602,2]
[354218324,1740351044415,-151.0,0.00014602,2]
[354218326,1740351044424,-151.0,0.00014602,2]
[354218328,1740351044434,-165.781025,0.00014602,2]
[354218330,1740351044442,-165.781025,0.00014602,2]
[354218332,1740351044451,-846.83,0.00014602,2]
[354218334,1740351044460,-590.92,0.00014602,2]
[354218336,1740351044469,-151.0,0.00014602,2]
[354218338,1740351044478,-151.0,0.00014602,2]
[354218339,1740351044487,-7691.95,0.00014602,2]
[354218340,1740351044496,-3077.95,0.00014602,2]
[354218341,1740351044505,-667.9,0.00014602,2]
[354218342,1740351044515,-500.0,0.00014602,2]
[354218343,1740351044524,-547.33,0.00014602,2]
[354218344,1740351044533,-500.0,0.00014602,2]
[354218345,1740351044542,-1650.06,0.00014602,2]
[354218346,1740351044551,-672.14,0.00014602,2]
[354218347,1740351044561,-1413.72,0.00014602,2]
[354218348,1740351044569,-634.35,0.00014602,2]
[354218349,1740351044579,-615.86,0.00014602,2]
[354218350,1740351044592,-151.0,0.00014602,2]
[354218351,1740351044601,-3066.51,0.00014602,2]
[354218352,1740351044610,-500.0,0.00014602,2]
[354218353,1740351044619,-500.0,0.00014602,2]
[354218354,1740351044628,-2733.70450478,0.00014684,5]
[354218355,1740351044637,-151.0,0.00014684,2]
[354218356,1740351044646,-151.0,0.00014684,2]
[354218357,1740351044656,-500.0,0.00014684,2]
[354218358,1740351044665,-700.86,0.00014684,2]
[354218359,1740351044674,-151.0,0.00014684,2]
[354218360,1740351044683,-151.0,0.00014684,2]
[354218361,1740351044692,-151.0,0.00014684,2]
[354218362,1740351044701,-361.93205697,0.00014684,2]
[354218363,1740351044710,-571.51,0.00014684,2]
[354218364,1740351044719,-532.160542,0.00014684,2]
[354218365,1740351044728,-532.160542,0.00014684,2]
[354218366,1740351044737,-846.83,0.00014684,2]
[354218367,1740351044747,-590.92,0.00014684,2]
[354218369,1740351044756,-7691.95,0.00014684,2]
[354218371,1740351044765,-3077.95,0.00014684,2]
[354218373,1740351044775,-667.9,0.00014684,2]
[354218375,1740351044783,-500.0,0.00014684,2]
[354218377,1740351044793,-500.0,0.00014684,2]
[354218379,1740351044802,-1650.06,0.00014684,2]
[354218380,1740351044816,-672.14,0.00014684,2]
[354218382,1740351044825,-1413.72,0.00014684,2]
[354218384,1740351044834,-634.35,0.00014684,2]
[354218386,1740351044844,-615.86,0.00014684,2]
[354218388,1740351044855,-3066.51,0.00014684,2]
[354218390,1740351044864,-500.0,0.00014684,2]
[354218393,1740351044874,-500.0,0.00014684,2]
[354218395,1740351044883,-28347.13886281,0.00014767,5]
[354218397,1740351044895,-500.0,0.00014767,2]
[354218398,1740351044905,-700.86,0.00014767,2]
[354218400,1740351044915,-571.51,0.00014767,2]
[354218402,1740351044924,-846.83,0.00014767,2]
[354218404,1740351044933,-590.92,0.00014767,2]
[354218406,1740351044942,-7691.95,0.00014767,2]
[354218408,1740351044952,-3077.95,0.00014767,2]
[354218410,1740351044962,-667.9,0.00014767,2]
[354218412,1740351044971,-500.0,0.00014767,2]
[354218414,1740351044982,-151.0,0.00014767,2]
[354218417,1740351044992,-500.0,0.00014767,2]
[354218419,1740351045001,-1650.06,0.00014767,2]
[354218421,1740351045012,-672.14,0.00014767,2]
[354218422,1740351045021,-1413.72,0.00014767,2]
[354218424,1740351045031,-634.35,0.00014767,2]
[354218426,1740351045040,-615.86,0.00014767,2]
[354218429,1740351045050,-3066.51,0.00014767,2]
[354218430,1740351045059,-500.0,0.00014767,2]
[354218433,1740351045069,-500.0,0.00014767,2]
[354218435,1740351045078,-29483.6278749,0.000148,2]
[354218436,1740351045087,-2680.32980681,0.00014839,2]
[354218438,1740351045096,-37353.44450591,0.0001484,2]
[354219058,1740351547149,203.530521,9.041e-05,2]
[354220301,1740352231985,-500.0,0.00012664,2]
[354220302,1740352231996,-300.0,0.00012717,2]
[354220303,1740352232006,-24900.0,0.00012718,2]
[354220304,1740352232015,-663.74800858,0.00013597,2]
[354220305,1740352232024,-295.7460367,0.00013598,2]
[354220306,1740352232034,-500.0,0.00013673,2]
[354220307,1740352232044,-266.20871586,0.00013673,2]
[354220309,1740352232054,-500.93511211,0.00013673,2]
[354220311,1740352232064,-500.0,0.00013673,2]
[354220313,1740352232073,-306.58259879,0.00013673,2]
[354220314,1740352232083,-455.27797696,0.00013673,2]
[354220316,1740352232092,-500.0,0.00013673,2]
[354220318,1740352232102,-151.11049539,0.00013673,2]
[354220320,1740352232111,-231.0573324,0.00013673,2]
[354220322,1740352232120,-500.44671729,0.00013698,2]
[354220324,1740352232130,-500.0,0.00013698,2]
[354220326,1740352232139,-500.0,0.00013698,2]
[354220328,1740352232149,-499.01693651,0.00013698,2]
[354220330,1740352232158,-508.28344812,0.00013698,2]
[354220332,1740352232167,-500.0,0.00013698,2]
[354220334,1740352232177,-500.0,0.00013698,2]
[354220336,1740352232186,-508.30349694,0.00013698,2]
[354220338,1740352232195,-500.0,0.00013698,2]
[354220340,1740352232205,-500.0,0.00013698,2]
[354220342,1740352232214,-530.21290272,0.00013698,2]
[354220344,1740352232223,-500.0,0.00013698,2]
[354220346,1740352232232,-500.0,0.00013698,2]
[354220348,1740352232241,-500.0,0.00013698,2]
[354220350,1740352232251,-500.0,0.00013698,2]
[354220352,1740352232260,-500.0,0.00013698,2]
[354220354,1740352232270,-363.90431767,0.00013698,2]
[354220356,1740352232279,-501.4073153,0.00013698,2]
[354220358,1740352232288,-500.66585079,0.00013698,2]
[354220360,1740352232297,-500.0,0.00013698,2]
[354220362,1740352232306,-500.0,0.00013698,2]
[354220364,1740352232316,-500.75909324,0.00013698,2]
[354220366,1740352232325,-500.0,0.00013698,2]
[354220368,1740352232334,-500.0,0.00013698,2]
[354220370,1740352232344,-500.0,0.00013698,2]
[354220372,1740352232356,-500.0,0.00013698,2]
[354220374,1740352232365,-500.0,0.00013698,2]
[354220377,1740352232375,-500.0,0.00013698,2]
[354220379,1740352232385,-277.53203475,0.00013698,2]
[354220389,1740352232502,-267.15,0.00013698,2]
[354220390,1740352232511,-500.0,0.00013698,2]
[354220391,1740352232521,-500.0,0.00013698,2]
[354220392,1740352232530,-502.18510898,0.00013698,2]
[354220393,1740352232539,-500.0,0.00013698,2]
[354220394,1740352232548,-500.0,0.00013698,2]
[354220395,1740352232557,-500.0,0.00013698,2]
[354220396,1740352232566,-500.0,0.00013698,2]
[354220397,1740352232575,-500.0,0.00013698,2]
[354220398,1740352232585,-500.0,0.00013698,2]
[354220399,1740352232595,-500.0,0.00013698,2]
[354220400,1740352232604,-500.0,0.00013698,2]
[354220401,1740352232613,-500.0,0.00013698,2]
[354220403,1740352232622,-364.22,0.00013698,2]
[354220404,1740352232631,-221.15848591,0.00013698,2]
[354220405,1740352232640,-500.0,0.00013698,2]
[354220407,1740352232650,-500.0,0.00013698,2]
[354220409,1740352232659,-500.0,0.00013698,2]
[354220411,1740352232668,-641.26784326,0.00013698,2]
[354220413,1740352232678,-500.0,0.00013698,2]
[354220415,1740352232687,-500.0,0.00013698,2]
[354220417,1740352232696,-265.96891735,0.00013698,2]
[354220419,1740352232705,-500.0,0.00013698,2]
[354220421,1740352232714,-500.0,0.00013698,2]
[354220423,1740352232723,-500.0,0.00013698,2]
[354220425,1740352232733,-500.0,0.00013698,2]
[354220427,1740352232741,-500.0,0.00013698,2]
[354220429,1740352232751,-500.0,0.00013698,2]
[354220431,1740352232760,-500.0,0.00013698,2]
[354220433,1740352232769,-500.0,0.00013698,2]
[354220435,1740352232778,-500.0,0.00013698,2]
[354220437,1740352232787,-503.6563053,0.00013698,2]
[354220439,1740352232797,-500.0,0.00013698,2]
[354220441,1740352232806,-500.0,0.00013698,2]
[354220443,1740352232816,-500.0,0.00013698,2]
[354220445,1740352232825,-500.0,0.00013698,2]
[354220447,1740352232834,-500.0,0.00013698,2]
[354220449,1740352232843,-500.0,0.00013698,2]
[354220451,1740352232852,-500.0,0.00013698,2]
[354220453,1740352232862,-500.0,0.00013698,2]
[354220455,1740352232871,-500.0,0.00013698,2]
[354220457,1740352232880,-500.0,0.00013698,2]
[354220459,1740352232889,-500.0,0.00013698,2]
[354220462,1740352232906,-503.42217947,0.00013698,2]
[354220465,1740352232920,-500.0,0.00013698,2]
[354220467,1740352232930,-500.0,0.00013698,2]
[354220469,1740352232939,-500.0,0.00013698,2]
[354220471,1740352232949,-500.0,0.00013698,2]
[354220473,1740352232959,-500.0,0.00013698,2]
[354220475,1740352232969,-500.0,0.00013698,2]
[354220477,1740352232979,-500.0,0.00013698,2]
[354220479,1740352232989,-500.0,0.00013698,2]
[354220481,1740352232999,-500.0,0.00013698,2]
[354220483,1740352233009,-500.0,0.00013698,2]
[354220485,1740352233019,-500.0,0.00013698,2]
[354220488,1740352233029,-500.0,0.00013698,2]
[354220490,1740352233040,-500.0,0.00013698,2]
[354220492,1740352233050,-500.0,0.00013698,2]
[354220494,1740352233060,-500.0,0.00013698,2]
[354220496,1740352233071,-500.0,0.00013698,2]
[354220498,1740352233081,-500.0,0.00013698,2]
[354220500,1740352233091,-500.0,0.00013698,2]
[354220502,1740352233101,-512.5450418,0.00013698,2]
[354220504,1740352233112,-506.78305691,0.00013698,2]
[354220506,1740352233122,-500.0,0.00013698,2]
[354220508,1740352233133,-500.0,0.00013698,2]
[354220510,1740352233143,-500.0,0.00013698,2]
[354220512,1740352233153,-482.39405405,0.00013698,2]
[354220514,1740352233163,-500.0,0.00013698,2]
[354220516,1740352233173,-501.32206366,0.00013698,2]
[354220518,1740352233184,-500.0,0.00013698,2]
[354220520,1740352233194,-500.0,0.00013698,2]
[354220522,1740352233205,-500.0,0.00013698,2]
[354220524,1740352233215,-500.0,0.00013698,2]
[354220526,1740352233225,-500.0,0.00013698,2]
[354220528,1740352233235,-500.0,0.00013698,2]
[354220530,1740352233245,-500.0,0.00013698,2]
[354220532,1740352233255,-500.0,0.00013698,2]
[354220534,1740352233265,-500.0,0.00013698,2]
[354220536,1740352233275,-500.0,0.00013698,2]
[354220538,1740352233285,-500.0,0.00013698,2]
[354220540,1740352233295,-500.0,0.00013698,2]
[354220542,1740352233305,-500.0,0.00013698,2]
[354220544,1740352233314,-500.0,0.00013698,2]
[354220547,1740352233324,-268.62439093,0.00013698,2]
[354220549,1740352233334,-500.0,0.00013698,2]
[354220550,1740352233344,-500.0,0.00013698,2]
[354220553,1740352233357,-500.0,0.00013698,2]
[354220555,1740352233366,-500.0,0.00013698,2]
[354220557,1740352233376,-500.0,0.00013698,2]
[354220558,1740352233387,-500.0,0.00013698,2]
[354220561,1740352233396,-500.0,0.00013698,2]
[354220563,1740352233406,-500.0,0.00013698,2]
[354220564,1740352233415,-500.0,0.00013698,2]
[354220566,1740352233426,-500.0,0.00013698,2]
[354220569,1740352233436,-596.1016754,0.00013698,2]
[354220571,1740352233446,-500.0,0.00013698,2]
[354220572,1740352233455,-509.48489708,0.00013698,2]
[354220574,1740352233466,-500.0,0.00013698,2]
[354220577,1740352233476,-500.0,0.00013698,2]
[354220579,1740352233486,-500.0,0.00013698,2]
[354220581,1740352233496,-500.0,0.00013698,2]
[354220583,1740352233506,-500.0,0.00013698,2]
[354220585,1740352233515,-500.0,0.00013698,2]
[354220586,1740352233525,-500.0,0.00013698,2]
[354220589,1740352233534,-500.0,0.00013698,2]
[354220590,1740352233543,-500.0,0.00013698,2]
[354220592,1740352233553,-500.0,0.00013698,2]
[354220595,1740352233562,-500.0,0.00013698,2]
[354220597,1740352233572,-500.0,0.00013698,2]
[354220599,1740352233581,-500.0,0.00013698,2]
[354220601,1740352233590,-500.0,0.00013698,2]
[354220603,1740352233599,-500.0,0.00013698,2]
[354220605,1740352233609,-500.0,0.00013698,2]
[354220607,1740352233618,-501.48258501,0.00013698,2]
[354220609,1740352233628,-500.0,0.00013698,2]
[354220611,1740352233637,-500.0,0.00013698,2]
[354220613,1740352233647,-637.37,0.00013698,2]
[354220614,1740352233657,-500.0,0.00013698,2]
[354220616,1740352233667,-577.44592736,0.00013698,2]
[354220619,1740352233676,-629.94877595,0.00013698,2]
[354220620,1740352233685,-500.0,0.00013698,2]
[354220623,1740352233695,-500.0,0.00013698,2]
[354220625,1740352233704,-500.0,0.00013698,2]
[354220626,1740352233715,-500.0,0.00013698,2]
[354220629,1740352233724,-500.0,0.00013698,2]
[354220631,1740352233733,-500.0,0.00013698,2]
[354220633,1740352233747,-500.0,0.00013698,2]
[354220635,1740352233756,-500.45402466,0.00013698,2]
[354220637,1740352233765,-464.81999802,0.00013698,2]
[354220639,1740352233775,-500.0,0.00013698,2]
[354220641,1740352233785,-500.0,0.00013698,2]
[354220643,1740352233794,-500.0,0.00013698,2]
[354220645,1740352233803,-500.0,0.00013698,2]
[354220647,1740352233813,-500.0,0.00013698,2]
[354220649,1740352233822,-500.0,0.00013698,2]
[354220651,1740352233832,-500.0,0.00013698,2]
[354220653,1740352233841,-500.0,0.00013698,2]
[354220655,1740352233851,-500.0,0.00013698,2]
[354220657,1740352233861,-500.0,0.00013698,2]
[354220659,1740352233871,-500.0,0.00013698,2]
[354220661,1740352233880,-500.0,0.00013698,2]
[354220663,1740352233889,-500.0,0.00013698,2]
[354220665,1740352233899,-451.78503378,0.00013698,2]
[354220668,1740352233909,-377.93769502,0.00013698,2]
[354220670,1740352233919,-500.0,0.00013698,2]
[354220672,1740352233930,-500.0,0.00013698,2]
[354220674,1740352233940,-500.0,0.00013698,2]
[354220676,1740352233950,-156.08240357,0.00013698,2]
[354220678,1740352233960,-513.70592896,0.00013698,2]
[354220680,1740352233970,-500.0,0.00013698,2]
[354220682,1740352233980,-500.0,0.00013698,2]
[354220684,1740352233989,-500.0,0.00013698,2]
[354220686,1740352233999,-500.0,0.00013698,2]
[354220688,1740352234009,-500.0,0.00013698,2]
[354220690,1740352234019,-500.0,0.00013698,2]
[354220692,1740352234028,-500.0,0.00013698,2]
[354220694,1740352234038,-500.0,0.00013698,2]
[354220696,1740352234048,-500.0,0.00013698,2]
[354220698,1740352234058,-500.0,0.00013698,2]
[354220701,1740352234068,-500.0,0.00013698,2]
[354220703,1740352234078,-500.0,0.00013698,2]
[354220705,1740352234087,-500.0,0.00013698,2]
[354220707,1740352234096,-609.84391506,0.00013698,2]
[354220709,1740352234105,-500.0,0.00013698,2]
[354220710,1740352234115,-500.0,0.00013698,2]
[354220713,1740352234125,-500.0,0.00013698,2]
[354220715,1740352234134,-500.0,0.00013698,2]
[354220717,1740352234145,-500.0,0.00013698,2]
[354220719,1740352234154,-500.0,0.00013698,2]
[354220721,1740352234164,-500.0,0.00013698,2]
[354220723,1740352234173,-500.0,0.00013698,2]
[354220725,1740352234183,-500.0,0.00013698,2]
[354220727,1740352234193,-500.0,0.00013698,2]
[354220729,1740352234203,-500.0,0.00013698,2]
[354220731,1740352234213,-500.0,0.00013698,2]
[354220733,1740352234222,-500.0,0.00013698,2]
[354220735,1740352234232,-500.0,0.00013698,2]
[354220737,1740352234242,-500.0,0.00013698,2]
[354220739,1740352234252,-500.0,0.00013698,2]
[354220741,1740352234262,-500.0,0.00013698,2]
[354220743,1740352234271,-500.0,0.00013698,2]
[354220745,1740352234281,-500.0,0.00013698,2]
[354220747,1740352234290,-500.0,0.00013698,2]
[354220749,1740352234300,-502.15766482,0.00013698,2]
[354220751,1740352234310,-500.0,0.00013698,2]
[354220753,1740352234319,-500.0,0.00013698,2]
[354220755,1740352234329,-500.0,0.00013698,2]
[354220757,1740352234338,-500.0,0.00013698,2]
[354220760,1740352234348,-529.28685293,0.00013698,2]
[354220762,1740352234357,-500.0,0.00013698,2]
[354220764,1740352234367,-500.0,0.00013698,2]
[354220766,1740352234379,-500.0,0.00013698,2]
[354220768,1740352234389,-500.0,0.00013698,2]
[354220770,1740352234398,-500.0,0.00013698,2]
[354220772,1740352234407,-500.0,0.00013698,2]
[354220774,1740352234417,-500.0,0.00013698,2]
[354220776,1740352234426,-500.0,0.00013698,2]
[354220778,1740352234436,-500.0,0.00013698,2]
[354220780,1740352234445,-500.0,0.00013698,2]
[354220782,1740352234454,-507.15875487,0.00013698,2]
[354220784,1740352234464,-500.0,0.00013698,2]
[354220786,1740352234474,-500.0,0.00013698,2]
[354220788,1740352234483,-500.0,0.00013698,2]
[354220790,1740352234492,-500.0,0.00013698,2]
[354220792,1740352234501,-490.44590244,0.00013698,2]
[354220794,1740352234510,-500.0,0.00013698,2]
[354220796,1740352234520,-547.44,0.00013698,2]
[354220798,1740352234530,-547.44,0.00013698,2]
[354220800,1740352234539,-547.44,0.00013698,2]
[354220802,1740352234548,-547.44,0.00013698,2]
[354220804,1740352234558,-547.44,0.00013698,2]
[354220806,1740352234567,-500.0,0.00013698,2]
[354220808,1740352234576,-547.44,0.00013698,2]
[354220810,1740352234586,-547.44,0.00013698,2]
[354220812,1740352234595,-547.44,0.00013698,2]
[354220814,1740352234604,-547.44,0.00013698,2]
[354220816,1740352234613,-500.0,0.00013698,2]
[354220818,1740352234623,-500.0,0.00013698,2]
[354220820,1740352234632,-500.0,0.00013698,2]
[354220822,1740352234641,-87.43836397,0.00013698,2]
[354221123,1740352237734,-304.23567552,0.00013698,2]
[354221125,1740352237746,-108.32596051,0.00013698,2]
[354221128,1740352237756,-500.0,0.00013698,2]
[354221130,1740352237765,-500.0,0.00013698,2]
[354221132,1740352237775,-500.0,0.00013698,2]
[354221134,1740352237784,-500.0,0.00013698,2]
[354221136,1740352237794,-503.65355636,0.00013698,2]
[354221138,1740352237806,-500.0,0.00013698,2]
[354221139,1740352237817,-430.16321683,0.00013698,2]
[354221141,1740352237826,-500.0,0.00013698,2]
[354221144,1740352237836,-500.0,0.00013698,2]
[354221145,1740352237845,-348.7814887,0.00013698,2]
[354221397,1740352240195,-151.2185113,0.00013698,2]
[354221399,1740352240205,-238.01148876,0.00013698,2]
[354221698,1740352242793,-261.98851124,0.00013698,2]
[354221700,1740352242803,-500.0,0.00013698,2]
[354221702,1740352242812,-500.0,0.00013698,2]
[354221704,1740352242822,-500.0,0.00013698,2]
[354221706,1740352242831,-500.0,0.00013698,2]
[354221708,1740352242841,-500.0,0.00013698,2]
[354221710,1740352242850,-500.0,0.00013698,2]
[354221712,1740352242860,-500.0,0.00013698,2]
[354221714,1740352242870,-500.0,0.00013698,2]
[354221716,1740352242879,-500.0,0.00013698,2]
[354221718,1740352242888,-500.0,0.00013698,2]
[354221720,1740352242898,-500.0,0.00013698,2]
[354221722,1740352242907,-500.0,0.00013698,2]
[354221724,1740352242917,-500.0,0.00013698,2]
[354221726,1740352242926,-500.0,0.00013698,2]
[354221728,1740352242936,-500.0,0.00013698,2]
[354221730,1740352242945,-500.0,0.00013698,2]
[354221732,1740352242954,-500.0,0.00013698,2]
[354221734,1740352242964,-501.32448758,0.00013698,2]
[354221736,1740352242976,-500.0,0.00013698,2]
[354221738,1740352242986,-500.0,0.00013698,2]
[354221740,1740352242996,-500.0,0.00013698,2]
[354221742,1740352243006,-500.0,0.00013698,2]
[354221744,1740352243015,-500.0,0.00013698,2]
[354221746,1740352243025,-500.0,0.00013698,2]
[354221748,1740352243035,-500.0,0.00013698,2]
[354221750,1740352243044,-500.0,0.00013698,2]
[354221752,1740352243053,-500.0,0.00013698,2]
[354221754,1740352243063,-500.0,0.00013698,2]
[354221756,1740352243072,-500.0,0.00013698,2]
[354221758,1740352243081,-754.54,0.00013698,2]
[354221760,1740352243090,-3453.46,0.00013698,2]
[354221762,1740352243100,-500.0,0.00013698,2]
[354221764,1740352243109,-500.0,0.00013698,2]
[354221766,1740352243118,-500.0,0.00013698,2]
[354221768,1740352243127,-501.64897032,0.00013698,2]
[354221770,1740352243136,-500.0,0.00013698,2]
[354221772,1740352243146,-500.0,0.00013698,2]
[354221774,1740352243155,-500.0,0.00013698,2]
[354221776,1740352243165,-500.0,0.00013698,2]
[354221778,1740352243174,-500.0,0.00013698,2]
[354221780,1740352243183,-500.0,0.00013698,2]
[354221782,1740352243191,-500.0,0.00013698,2]
[354221784,1740352243200,-500.0,0.00013698,2]
[354221786,1740352243210,-1372.8,0.00013698,2]
[354221788,1740352243221,-527.74516049,0.00013698,2]
[354221790,1740352243231,-500.0,0.00013698,2]
[354221792,1740352243241,-500.0,0.00013698,2]
[354221794,1740352243251,-500.0,0.00013698,2]
[354221796,1740352243260,-500.0,0.00013698,2]
[354221798,1740352243271,-500.0,0.00013698,2]
[354221799,1740352243280,-501.46028111,0.00013698,2]
[354221802,1740352243290,-500.0,0.00013698,2]
[354221803,1740352243300,-500.0,0.00013698,2]
[354221805,1740352243309,-500.0,0.00013698,2]
[354221807,1740352243318,-500.0,0.00013698,2]
[354221809,1740352243327,-500.0,0.00013698,2]
[354221811,1740352243336,-500.0,0.00013698,2]
[354221813,1740352243346,-500.0,0.00013698,2]
[354221815,1740352243355,-500.0,0.00013698,2]
[354221817,1740352243365,-500.0,0.00013698,2]
[354221819,1740352243377,-500.0,0.00013698,2]
[354221821,1740352243386,-500.0,0.00013698,2]
[354221823,1740352243395,-500.0,0.00013698,2]
[354221825,1740352243405,-613.8235183,0.00013698,2]
[354221827,1740352243415,-500.0,0.00013698,2]
[354221829,1740352243424,-253.19610341,0.00013698,2]
[354221831,1740352243433,-500.0,0.00013698,2]
[354221833,1740352243442,-500.0,0.00013698,2]
[354221835,1740352243451,-500.0,0.00013698,2]
[354221837,1740352243461,-500.0,0.00013698,2]
[354221839,1740352243470,-500.0,0.00013698,2]
[354221841,1740352243480,-741.85,0.00013698,2]
[354221843,1740352243489,-424.13738773,0.00013698,2]
[354221845,1740352243498,-500.0,0.00013698,2]